Cogmind - Beta 14 @@@ ROGUE MODE // 2024.08.15 @ 15:33:14 Player: star Result: Smashed by cave-in Performance ------------- Evolutions (0) 0 Regions Visited (2) 400 Robots Destroyed (13) 65 Value Destroyed (358) 358 Prototype IDs (2) 40 Alien Tech Used (0) 0 Bonus (0) 0 TOTAL SCORE: 863 Bonus ------- None Cogmind --------- Core Integrity 0/250 Matter 269/300 Energy 100/100 System Corruption 13% Temperature Cool (0) Movement Rolling (100) Location -10/Subcaves Parts ------- > --- POWER (1) -------- (None) > --- PROPULSION (2) --- Compact Wheel > --- UTILITY (2) ------ Small Storage Unit > --- WEAPON (2) ------- Battle Rifle > --- INVENTORY (8) ---- Wheel Wheel Large Battery (200) Transport Network Coupler Medium Armor Plating Medium Armor Plating Grenade Launcher Peak State ------------ > --- POWER ------------ Subdweller Power Source > --- PROPULSION ------- Compact Wheel Compact Wheel > --- UTILITY ---------- Small Storage Unit Hacking Suite > --- WEAPON ----------- Light EM Pulse Cannon Subdweller Machine Gun > --- INVENTORY -------- Wheel Wheel Large Battery Transport Network Coupler Medium Armor Plating Medium Armor Plating Grenade Launcher Grenade Launcher [Rating: 13] Favorites ----------- Power Subdweller Power Source Engine Subdweller Power Source Propulsion Compact Wheel Wheel Compact Wheel Utility Small Storage Unit Device Heat Sink Storage Small Storage Unit Hackware Hacking Suite Protection Medium Armor Plating Weapon Light EM Pulse Cannon Energy Gun EM Pulse Gun Energy Cannon Light EM Pulse Cannon Ballistic Gun Subdweller Machine Gun Launcher Grenade Launcher Build | -11 -10 -10 ------- Run | Yrd Mat Sub Slots Evolved . | . . . Power . | . . . Propulsion . | . . . Utility . | . . . Weapon . | . . . Parts Attached 24 | 6 8 10 Power 3 | 1 . 2 Engine 3 | 1 . 2 Core . | . . . Reactor . | . . . Propulsion 4 | 2 2 . Treads . | . . . Leg . | . . . Wheel 4 | 2 2 . Hover . | . . . Flight . | . . . Utility 4 | 1 3 . Device 1 | . 1 . Storage 1 | 1 . . Processor . | . . . Hackware 1 | . 1 . Protection 1 | . 1 . Artifact . | . . . Weapon 13 | 2 3 8 Energy Gun 2 | . 1 1 Energy Cannon 3 | . 1 2 Ballistic Gun 5 | 2 1 2 Ballistic Cannon . | . . . Launcher 3 | . . 3 Special Weapon . | . . . Impact Weapon . | . . . Slashing Weapon . | . . . Piercing Weapon . | . . . Special Melee Weapon . | . . . Unidentified Prototypes . | . . . Parts Lost 7 | . 1 6 Power 2 | . 1 1 Propulsion 1 | . . 1 Utility 1 | . . 1 Weapon 3 | . . 3 Highest Loss Streak 4 | . 1 4 To Critical Strikes . | . . . Average Slot Usage (%) 89 | . 87 90 Engine 6 | . 6 6 Wheel 28 | . 28 28 Storage 14 | . 14 14 Hackware 11 | . 7 14 Energy Gun 8 | . 10 7 Energy Cannon 9 | . 9 9 Ballistic Gun 7 | . 8 7 Launcher 1 | . . 2 Peak Build Rating 13 | 6 10 13 Average Rating 10 | 5 8 11 On Entrance 5 | . 6 10 Naked Turns . | . . . Heaviest Build 18 | 13 18 18 Greatest Support 32 | 26 32 32 Greatest Overweight (x) . | . . . Average Overweight (x) . | . . . Largest Inventory Capacity 8 | 8 8 8 Average Capacity 7 | 7 8 8 Most Carried 8 | . 8 8 Average Carried 6 | . 5 7 Final Capacity 8 | 8 8 8 Final Carried 8 | . 8 7 Class Distribution -------------------- 100% | Mutant Dominant Class ---------------- Mutant | -10/Materials Mutant | -10/Subcaves Resources | -11 -10 -10 ----------- Run | Yrd Mat Sub Matter Collected 644 | 225 134 285 Remotely . | . . . Salvage Created 393 | . 135 258 Parts 26 | . 14 12 Haulers Intercepted 1 | . 1 . Recyclers Shooed . | . . . Parts Field Recycled . | . . . Retrieved Matter . | . . . Parts Self-Destructed 14 | . . 14 Prevented . | . . . Kills | -11 -10 -10 ------- Run | Yrd Mat Sub Combat Hostiles Destroyed 11 | . 4 7 Guns 6 | . 3 3 AOE 5 | . 1 4 Classes Destroyed 6 | . 3 3 Hauler 1 | . 1 . Operator 1 | . 1 . Swarmer 4 | . 4 . Grunt 3 | . . 3 Sentry 1 | . . 1 Subdweller 3 | . . 3 Best Kill Streak 2 | . 2 2 Combat Bots Only 2 | . 2 2 Max Kills in Single Turn 2 | . 1 2 Gunslinging . | . . . Exploded 2 | . 1 2 Melee . | . . . Uniques/NPCs Destroyed . | . . . Combat | -11 -10 -10 -------- Run | Yrd Mat Sub Hostile Shots Fired 56 | . 33 23 Missed 11 | . 5 6 Damage Taken 1141 | . 314 827 Core 267 | . 53 214 Absorbed by Shields . | . . . Core Remaining (%) 100 | 100 . . Volleys Fired 64 | . 20 44 Largest 2 | . 2 2 Hottest 106 | . 96 106 Shots Fired 105 | . 40 65 Gun 86 | . 37 49 Cannon 11 | . 3 8 Launcher 8 | . . 8 Special . | . . . Kinetic 68 | . 34 34 Thermal . | . . . Explosive 8 | . . 8 Electromagnetic 29 | . 6 23 Robot Hit Streak 11 | . 10 11 Robot Miss Streak 5 | . 5 2 Penetration Max . | . . . Secondary Targets . | . . . Shots Hit Robots 46 | . 22 24 Core Hits 19 | . 8 11 Critical Kills . | . . . Critical Parts Destroyed . | . . . Critical Strikes . | . . . Melee Attacks . | . . . Impact . | . . . Slashing . | . . . Piercing . | . . . Sneak Attacks . | . . . Combat Hostiles . | . . . Follow-up Attacks . | . . . Damage Inflicted 1026 | . 263 763 Guns 474 | . 196 278 Cannons 74 | . 27 47 Explosions 478 | . 40 438 Melee . | . . . Ramming . | . . . Kinetic 347 | . 186 161 Thermal 261 | . 40 221 Explosive 217 | . . 217 Electromagnetic 201 | . 37 164 Impact . | . . . Slashing . | . . . Piercing . | . . . Highest Corruption 1 | . 1 1 Average Corruption 1 | . 1 1 Corruption Purged . | . . . Corruption Blocked . | . . . Effects 10 | . 1 9 Message Errors 1 | . . 1 Matter Fused 4 | . . 4 Heat Flow Errors 1 | . 1 . Energy Discharges 2 | . . 2 Data Loss (minor) 2 | . . 2 Overload Shots . | . . . Overflow Damage 6 | . 6 . Projectiles . | . . . Explosions 6 | . 6 . Melee . | . . . Knockbacks . | . . . Impact . | . . . Kinetic . | . . . Secondary . | . . . Self-Inflicted Damage 62 | . 37 25 Shots 2 | . 1 1 Rammed . | . . . Targets Rammed . | . . . Kicked . | . . . Crushed . | . . . Highest Temperature 147 | . 147 . Average Temperature 53 | . 53 . Received Heat Transfer 102 | . . 102 Siege Activations . | . . . Robots Corrupted . | . . . Combat Hostiles . | . . . Parts Fried 1 | . . 1 Impact Corruptions . | . . . Robots Melted . | . . . Combat Hostiles . | . . . Parts Melted 1 | . 1 . Heat Transferred 300 | . 50 250 Parts Sabotaged . | . . . Parts Stolen . | . . . Parts Stripped . | . . . Power Chain Reactions 4 | . 1 3 Alert | -11 -10 -10 ------- Run | Yrd Mat Sub Peak Influence 222 | . 222 . Initial . | . . . Average 80 | . 89 . Maximum Alert Level 1 | . 1 . Low Security (%) 87 | 100 86 . Level 1 12 | . 13 . Level 2 . | . . . Level 3 . | . . . Level 4 . | . . . Level 5 . | . . . High Security . | . . . Max Security . | . . . Squads Dispatched . | . . . Investigation . | . . . Extermination . | . . . Reinforcement . | . . . Assault . | . . . Garrison . | . . . Intercept . | . . . Searches Triggered . | . . . Construction Impeded . | . . . Haulers Reinforced . | . . . Active Scanning Responses . | . . . Cargo Convoy Interrupts . | . . . Stealth | -11 -10 -10 --------- Run | Yrd Mat Sub Distress Signals 2 | . 2 . Communications Jammed . | . . . Distress Signals . | . . . Times Spotted 26 | . 15 11 Peak Tracking Total 4 | . 4 2 Tactical Retreats 5 | . 3 2 Traps | -11 -10 -10 ------- Run | Yrd Mat Sub Traps Triggered 4 | . 1 3 Indirectly . | . . . Trap Hack Attempts . | . . . Triggered . | . . . Disarmed . | . . . Reprogrammed . | . . . Reused . | . . . Traps Extracted . | . . . Installed . | . . . Triggered . | . . . Machines | -11 -10 -10 ---------- Run | Yrd Mat Sub Machines Disabled 2 | . 2 . Max in Single Turn 1 | . 1 . Machines Repaired . | . . . Machines Dismantled . | . . . Machines Sabotaged . | . . . Overloaded Fab Kills . | . . . Hacking | -11 -10 -10 --------- Run | Yrd Mat Sub Machines Accessed 7 | . 6 1 Terminals 6 | . 6 . Fabricators . | . . . Repair Stations . | . . . Recycling Units . | . . . Scanalyzers . | . . . Garrison Access . | . . . Total Hacks 19 | . 16 3 Successful 14 | . 11 3 Failed 5 | . 5 . Catastrophic . | . . . Database Lockouts . | . . . Manual 5 | . 5 . Terminals 16 | . 16 . Fabricators . | . . . Repair Stations . | . . . Recycling Units . | . . . Scanalyzers . | . . . Garrison Access . | . . . Terminal Hacks 10 | . 7 3 Record 3 | . . 3 Robot Analysis 1 | . 1 . Prototype ID Bank 1 | . 1 . Alert Level 1 | . 1 . Unreport Threat 1 | . 1 . Investigation Status 1 | . 1 . Registered Components 1 | . 1 . Zone Layout 1 | . 1 . Fabricator Hacks . | . . . Repair Station Hacks . | . . . Recycling Unit Hacks . | . . . Scanalyzer . | . . . Garrison Access Hacks . | . . . Unauthorized Hacks 4 | . 4 . Terminals 4 | . 4 . Botnet 2 | . 2 . Operators 2 | . 2 . Fabricators . | . . . Repair Stations . | . . . Recycling Units . | . . . Scanalyzers . | . . . Garrison Access . | . . . Data Cores Recovered 1 | . 1 . Used 1 | . 1 . Hacking Detections 6 | . 6 . Full Trace Events . | . . . Feedback Events . | . . . Feedback Blocked . | . . . Robot Schematics Acquired . | . . . Robots Built . | . . . Authchips . | . . . Time . | . . . Total Robot Build Rating . | . . . Part Schematics Acquired . | . . . Parts Built . | . . . Authchips . | . . . Time . | . . . Total Part Build Rating . | . . . Parts Repaired . | . . . Time . | . . . Parts Recycled . | . . . Recycled Matter . | . . . Retrieved Matter . | . . . Retrieved Components . | . . . Parts Scanalyzed . | . . . Part Schematics Acquired . | . . . Parts Damaged . | . . . Bothacking | -11 -10 -10 ------------ Run | Yrd Mat Sub Used RIF Installer . | . . . Robots Hacked . | . . . Non-combat . | . . . Combat . | . . . Robot Hacks Applied . | . . . Relay Couplers Released . | . . . Fabnet Peak Effective % . | . . . Robots Rewired . | . . . Allies Hacked . | . . . Hacks Repelled . | . . . Allies | -11 -10 -10 -------- Run | Yrd Mat Sub Total Allies . | . . . Largest Group . | . . . Highest-Rated Group . | . . . Highest-Rated Ally . | . . . Total Orders . | . . . Ally Attacks . | . . . Total Damage . | . . . Kills . | . . . Allies Corrupted . | . . . Allies Melted . | . . . Intel | -11 -10 -10 ------- Run | Yrd Mat Sub Robot Analysis Total 1 | . 1 . Derelict Logs Recovered 1 | . . 1 Drone Launches . | . . . Drone Recoveries . | . . . Exploration | -11 -10 -10 ------------- Run | Yrd Mat Sub Turns Passed 1680 | 76 666 938 Spaces Moved 1426 | 76 568 782 Core 3 | 3 . . Treads . | . . . Legs . | . . . Wheels 1423 | 73 568 782 Hover . | . . . Flight . | . . . Fastest Speed 50 | 50 90 100 Average Speed 98 | 88 98 100 Slowest Speed 100 | 90 100 100 Overloaded Moves . | . . . Propulsion Burnouts . | . . . Robots Hopped . | . . . Cave-ins Triggered 1 | . . 1 Exploration Rate (%) 45 | 6 90 39 Regions Visited 2 Branch Regions 1 Pre-discovered Areas 1 | . . 1 Known Exits Taken . | . . . Unknown Exits Taken 2 | 1 1 . Scrap Searched . | . . . Spaces Dug 10 | . . 10 Terrain Destroyed 59 | . 2 57 Melee . | . . . Projectile 11 | . . 11 AOE 48 | . 2 46 Terrain Rammed . | . . . Walls Destroyed . | . . . Machines Disabled . | . . . Actions | -11 -10 -10 --------- Run | Yrd Mat Sub Total 1585 | 81 635 869 Wait 56 | . 26 30 Move 1423 | 75 567 781 Hop . | . . . Pick Up 11 | . 10 1 Fast Attach 9 | 6 1 2 Attach 1 | . . 1 Detach . | . . . Swap 14 | . 7 7 Drop 7 | . 4 3 Fire 64 | . 20 44 Melee . | . . . Ram . | . . . Kick . | . . . Crush . | . . . Escape Stasis . | . . . Rewire . | . . . Trap . | . . . Miscellaneous . | . . . Route ------- -11/Scrapyard -10/Materials (discovered 5 exits: [*Mat x3] / [*Min] / *Sub) -10/Subcaves History --------- Turn | Location | Event 15 | -11/Scrapyard | Discovered new exit (range 16) 77 | -11/Scrapyard | Entered Materials 313 | -10/Materials | Build established: Mutant 404 | -10/Materials | Discovered new exit (range 14) 433 | -10/Materials | Discovered new exit (range 16) 660 | -10/Materials | Discovered new exit (range 15) 718 | -10/Materials | Discovered new exit (range 15) 731 | -10/Materials | Discovered new exit (range 13) 743 | -10/Materials | Entered Subcaves 744 | -10/Subcaves | Learned Materials trap positions 799 | -10/Subcaves | Shifting Twisted Machinery released Mak. Light Armor Plating 806 | -10/Subcaves | Shifting Twisted Machinery released Flamer 886 | -10/Subcaves | Shifting Twisted Machinery released Riot Gun 889 | -10/Subcaves | Shifting Twisted Machinery released Sub. Machine Gun 968 | -10/Subcaves | Visited Clippyterm 971 | -10/Subcaves | Learned location of Extension (-6) 1167 | -10/Subcaves | Core integrity fell below 50% 1586 | -10/Subcaves | Ambushed by Subdweller buried in earth 1645 | -10/Subcaves | Ambushed by Subdweller buried in earth 1681 | -10/Subcaves | Crushed by falling debris 1681 | -10/Subcaves | Smashed by cave-in Last Messages --------------- 01599_ Acquired 32 matter. 01607_ The unstable cave ceiling collapses. 01607_ 19 Matter crushed. 01623_ Triggered Shrapnel Trap. 01623_ An expanding cloud of shrapnel blasts out in all directions. 01640_ System corrupted: Matter fused (-7). 01646_ NS-0RL(R): "ARGHSUB!" 01649_ Sub. Machine Gun destroyed. 01656_ NS-0RL(R) destroyed. 01658_ Acquired 37 matter. 01681_ The unstable cave ceiling collapses. 01681_ Crushed by falling debris. 01681_ Com. Wheel destroyed. 01681_ System corrupted by crushing effect (+1). 01681_ Grenade Launcher destroyed. 01681_ System corrupted by crushing effect (+5). 01681_ Sub. Power Source destroyed. 01681_ System corrupted by crushing effect (+1). 01681_ Hacking Suite destroyed. 01681_ System corrupted by crushing effect (+5). Map ----- +----------------------------------------------------+ | ?????## #????? ????# ????????????????? | | ??????###???? #????? ????????????????? | | ?????????????? #??????# ????????????????? | | ##????????????? ######??# ????????????????? | | ###???????????# # " #??? ????????????????? | | ##?????????## #" &"???# ????????????????? | | ########### " #???# ????????????????? | | ## # # # " #???? ###?????????????? | | ## # # " #????? #???????????? | | " #"??????# #???????????? | | & "" ######?# #???????????# | | # # """ # #?# ####???????? | | ###### #""#" ## #?## ##??##### | | ???? #" ""# #### # ### #### | | ?? ""#"######??# ## ## | | ? ""###???????## ## ## | | ###""#??????????# % ### # | | #??"" #?????????# # ### ###### # | | ???? ????????# % ## #?###??## | | ????? ????????# # # #?????# | | ???????????????#### ## # ##?????# | | #??????????????????# ?### ??????## | | ??????????????????? ??? ####???????## # | | ??????????????????? #?#############??# ## | | ???????????????????#?## # =# # # #??# ### #? | | ?????????????????????# @ & ##?# ##?# #? | | ?????????????????????########### #?####??## #? | | ???????????????????????????????# #?????##### ## | | ???????????????????????##??????## #?????# # # | | ??????????????????????? #??????# #??????# # | | ???????????????????#### #?????##" "###???## ## | | ???????????????????#!#* #??####" ##?## # #? | | ???????????????????## !##?## " " ### # ##? | | ????????????????????###]### ^ ##? | | ??????????????????????## # #"" #? | | ???????????????????????### ### """"# ^ # ## #? | | ?????????????????????????###?#### ### #######?##? | | ????????????????????????????????###?####?????????? | | ?????????????????????????????????????????????????? | | ?????????????????????????????????????????????????? | | ?????????????????????????????????????????????????? | | ?????????????????????????????????????????????????? | | ?????????????????????????????????????????????????? | | ?????????????????????????????????????????????????? | | ?????????????????????????????????????????????????? | | ?????????????????????????????????????????????????? | | ?????????????????????????????????????????????????? | | ?????????????????????????????????????????????????? | | ?????????????????????????????????????????????????? | | ?????????????????????????????????????????????????? | +----------------------------------------------------+ Best States ------------- Heat Dissipation 35 Energy Generation 15 Energy Capacity 250 Matter Stores 300 Matter Capacity 300 Sight Range 16 Terrain Scan Density 10 Armor Coverage 225 Evasion (%) 42 Offensive Hacking 10 Item Schematics ----------------- None Robot Schematics ------------------ None Fabricated ------------ Nothing Alien Tech Used ----------------- None Achievements -------------- None Challenges ------------ None Game ------ Seed ShadingGravityUnit Manual? 0 Play Time 00:21:25 Cumulative 51.9 hours Start 2024.08.15 @ 11:49:08 End 2024.08.15 @ 15:33:14 Sessions 1 Manual Loads 0 Difficulty Rogue Special Mode None Game No. 94 Rogue 94 Adventurer 0 Explorer 0 Win Type - Total 0 Types 0/0/0/0/0/0/0/0/0 Lore% 21 Gallery% 42 Achievement% 34 Wizard Run 0 Options --------- Layout 0 ASCII 0 Keyboard 0 Movement Mouse Keybinds 0 Fullscreen 0 Font 16/SmallcapsGlow Map View 76x50 Zoom Use 0% Tactical HUD 1 Map Filters NONE Filters NONE Steam 1 RUN: 5834c786-3fe7-45a9-8ebf-ffee6d44ffe7